bitfinex-derivatives/quotes_ETHF0:USTF0_20250411
["timestamp","ask_amount","ask_price","bid_price","bid_amount"]
[1744329876570,12.4128174,1522.9,1522.8,45.704]
[1744329876885,11.0986474,1522.9,1522.8,45.704]
[1744329877382,12.4128174,1522.9,1522.8,45.704]
[1744329878487,4.52185,1523.1,1522.8,47.01826]
[1744329878786,1.31417,1522.9,1522.8,40.8]
[1744329879289,12.4128174,1522.9,1522.8,40.8]
[1744329879585,14.0952174,1522.9,1522.8,40.8]
[1744329880582,12.7810474,1522.9,1522.8,40.8]
[1744329880889,1.31426,1522.8,1522.7,0.00987718]
[1744329881088,1.31456,1522.5,1522.3,5.044]
[1744329881288,1.31456,1522.5,1522.4,40.8]
[1744329881489,11.0986474,1522.5,1522.4,42.1146]
[1744329881691,11.0986474,1522.5,1522.4,40.8]
[1744329881985,12.4131674,1522.5,1522.4,40.8]
[1744329882692,11.0986474,1522.5,1522.4,40.8]
[1744329882986,11.0986474,1522.5,1522.4,42.1146]
[1744329883186,0.00987718,1522.6,1522.4,42.1146]
[1744329883490,12.42297458,1522.6,1522.4,40.8]
[1744329883789,12.42297458,1522.6,1522.4,42.11459]
[1744329884191,1.6561,1522.5,1522.4,42.11459]
[1744329886691,0.00987718,1522.6,1522.5,1.31452]
[1744329887891,0.00987718,1522.6,1522.5,4.52232]
[1744329888384,7.18e-06,1522.6,1522.5,9.52232]
[1744329888695,4.12501,1523.5,1522.8,3.2856]
[1744329888985,12.7577474,1523.4,1523.2,4.52165]
[1744329889191,12.7577474,1523.4,1523.3,5.043]
[1744329889390,1.6591,1523.4,1523.3,6.35683]
[1744329889693,12.7577474,1523.4,1523.3,5.043]
[1744329890190,19.0714874,1523.4,1523.3,5.043]
[1744329890889,17.7577474,1523.4,1523.3,5.043]
[1744329891084,19.0714874,1523.4,1523.3,5.043]
[1744329891786,22.2792874,1523.4,1523.3,5.043]
[1744329891982,1.31383,1523.3,1523.2,0.00987718]
[1744329892183,14.0898774,1523.3,1523.2,0.00987718]
[1744329892695,12.7760474,1523.3,1523.2,1.32378718]
[1744329894585,12.7760474,1523.3,1523.2,0.00987718]
[1744329894791,12.7760474,1523.3,1523.2,1.32378718]
[1744329894988,12.7760474,1523.3,1523.2,0.00987718]
[1744329895187,12.7760474,1523.3,1523.2,1.32378718]
[1744329895695,1.6774,1523.3,1523.2,1.32378718]
[1744329895998,12.7760474,1523.3,1523.2,1.32378718]
[1744329898693,12.7760474,1523.3,1523.2,0.00987718]
[1744329898999,6.6774,1523.3,1522.7,3.2078]
[1744329899196,1.31412,1523.0,1522.6,5.042]
[1744329899395,3.1053,1522.9,1522.7,1.31429]
[1744329899595,15.5181374,1522.9,1522.6,6.35636]
[1744329899798,11.0986474,1522.8,1522.7,1.31434]
[1744329900001,12.7759474,1522.8,1522.7,1.31434]
[1744329900199,1.31434,1522.7,1522.6,0.00987718]
[1744329900401,15.8840474,1522.7,1522.5,1.3145]
[1744329900695,11.0986474,1522.6,1522.5,1.3145]
[1744329900899,1.5776,1522.6,1522.5,45.3223]
[1744329901099,12.6762474,1522.6,1522.5,42.1145]
[1744329901297,12.6762474,1522.6,1522.5,40.8]
[1744329901499,13.9906774,1522.6,1522.5,40.8]
[1744329901701,12.6762474,1522.6,1522.5,42.11452]
[1744329903203,12.6762474,1522.6,1522.5,45.32232]
[1744329903405,1.43787718,1522.9,1522.8,1.31426]
[1744329903605,1.43787718,1522.9,1522.8,5.042]
[1744329903792,12.53652458,1522.9,1522.7,1.31428]
[1744329903998,11.0986474,1522.8,1522.7,1.31428]
[1744329904299,12.53652458,1522.9,1522.8,1.31426]
[1744329904802,0.00987718,1522.9,1522.8,1.31426]
[1744329905004,0.00987718,1522.9,1522.8,6.31426]
[1744329905203,0.00987718,1522.9,1522.8,1.31426]
[1744329905503,0.00987718,1522.9,1522.8,6.97106]
[1744329907004,0.00987718,1522.9,1522.8,1.97106]
[1744329908602,11.10852458,1522.9,1522.7,1.31432]
[1744329908795,14.0571474,1522.8,1522.6,5.042]
[1744329909202,11.0986474,1522.7,1522.6,6.35642]
[1744329909402,12.8173474,1522.7,1522.6,6.35642]
[1744329909907,14.1316874,1522.7,1522.6,5.042]
[1744329910204,12.8173474,1522.7,1522.6,5.042]
[1744329910702,12.8173474,1522.7,1522.6,9.56423]
[1744329910900,1.32411718,1522.9,1522.8,1.31426]
[1744329910901,0.00987718,1522.9,1522.8,1.31426]
[1744329911203,0.00987718,1522.9,1522.8,4.52206]
[1744329911402,0.00987718,1522.9,1522.8,9.52206]
[1744329911808,0.00987718,1522.9,1522.8,4.52206]
[1744329913207,0.00987718,1522.9,1522.8,0.6568]
[1744329913409,12.72612458,1522.9,1522.7,27.097104]
[1744329913606,11.0986474,1522.8,1522.7,27.097104]
[1744329913807,12.7162474,1522.8,1522.7,27.097104]
[1744329914804,12.7162474,1522.8,1522.7,25.782824]
[1744329915003,16.8150074,1522.8,1522.7,25.782824]
[1744329915811,15.5007474,1522.8,1522.7,27.097164]
[1744329916107,15.5007474,1522.8,1522.7,29.53241963]
[1744329917110,16.8150074,1522.8,1522.7,28.21807963]
[1744329918408,15.5007474,1522.8,1522.7,28.21807963]
[1744329918709,16.8150074,1522.8,1522.7,28.21807963]
[1744329919709,16.8150074,1522.8,1522.6,13.49914973]
[1744329919910,11.0986474,1522.7,1522.6,13.49914973]
[1744329920112,12.7389474,1522.7,1522.6,14.81357973]
[1744329920608,12.7389474,1522.7,1522.6,13.49914973]
[1744329921307,19.0532874,1522.7,1522.6,10.29134973]
[1744329921518,22.2610874,1522.7,1522.6,5.92924973]
[1744329922200,1.31443,1522.6,1522.5,56.23520911]
[1744329922401,12.4130774,1522.6,1522.5,56.23520911]
[1744329922606,17.4130774,1522.6,1522.5,15.43520911]
[1744329923713,17.4130774,1522.6,1522.5,11.07320911]
[1744329923899,1.3146,1522.4,1522.3,20.58027881]
[1744329924210,1.31486,1522.1,1522.0,15.44328847]
[1744329924403,4.52266,1522.1,1522.0,15.44328847]
[1744329924604,9.52266,1522.1,1522.0,15.44328847]
[1744329924911,9.52266,1522.1,1522.0,56.24328847]
[1744329925307,4.52266,1522.1,1522.0,56.24328847]
[1744329927008,10.97316,1522.1,1522.0,14.06667847]
[1744329927309,1.31504,1521.9,1521.8,17.55534446]
[1744329927509,1.31547,1521.4,1521.3,30.9393888]
[1744329930516,1.3159,1520.9,1520.8,25.70136184]
[1744329931814,9.5237,1520.9,1520.8,22.86516184]
[1744329932016,3.29,1520.8,1520.4,30.84163421]
[1744329932211,1.31625,1520.5,1520.4,30.84163421]
[1744329932611,2.90105,1520.5,1520.4,30.84163421]
[1744329932914,7.90105,1520.5,1520.4,70.13086421]
[1744329933213,9.27185,1520.5,1520.4,26.63898421]
[1744329933409,9.27185,1520.5,1520.3,0.00657327]
[1744329933410,1.31633,1520.4,1520.3,0.00657327]
[1744329933610,11.22343,1520.4,1520.3,40.80657327]
[1744329933819,6.15043,1520.4,1520.3,40.80657327]
[1744329934814,4.52413,1520.4,1520.3,40.80657327]
[1744329935017,4.52413,1520.4,1520.3,47.37697327]
[1744329935018,1.31633,1520.4,1520.3,47.37697327]
[1744329935922,1.32604718,1520.6,1520.4,1.31631]
[1744329936216,0.00987718,1520.6,1520.5,1.6328]
[1744329936413,0.00987718,1520.6,1520.5,8.2032]
[1744329936615,1.32603718,1520.6,1520.5,8.2032]
[1744329936914,0.00987718,1520.6,1520.5,14.51945]
[1744329937814,0.00987718,1520.6,1520.5,9.51945]
[1744329938319,0.00987718,1520.6,1520.5,8.2032]
[1744329938518,0.00987718,1520.6,1520.5,9.51945]
[1744329940820,0.00987718,1520.6,1520.5,14.51945]
[1744329941212,0.00987718,1520.6,1520.5,17.72725]
[1744329941413,3.401,1521.2,1521.0,1.31578]
[1744329941620,0.1577,1521.2,1521.1,1.7075]
[1744329941923,1.31562,1521.3,1521.1,1.7075]
[1744329942120,1.31564,1521.2,1521.1,8.2779]
[1744329942315,3.2078,1521.2,1520.8,5.016]
[1744329942513,1.31587,1521.0,1520.9,49.0779]
[1744329943121,3.21767718,1521.2,1521.0,1.31575]
[1744329943417,0.00987718,1521.2,1521.1,1.6503]
[1744329943721,1.32551718,1521.2,1521.1,1.6503]
[1744329944108,1.32551718,1521.2,1521.1,40.8]
[1744329944815,0.00987718,1521.2,1521.1,42.11573]
[1744329945024,0.00987718,1521.2,1521.1,48.68613]
[1744329945616,1.32551718,1521.2,1521.1,47.3704]
[1744329946119,1.32551718,1521.2,1521.1,40.8]
[1744329946523,9.53331718,1521.2,1521.1,40.8]
[1744329946725,4.53331718,1521.2,1521.1,40.8]
[1744329946911,9.53331718,1521.2,1521.1,40.8]
[1744329947619,9.53331718,1521.2,1520.4,5.6726]
[1744329947620,1.31625,1520.5,1520.4,5.015]
[1744329947821,1.31625,1520.5,1520.3,1.31635]
[1744329948019,1.31625,1520.5,1520.4,6.5704]
[1744329948516,4.52403,1520.6,1520.4,40.8]
[1744329948725,1.31623,1520.6,1520.4,48.68671]
[1744329948921,1.31623,1520.6,1520.5,1.6753]
[1744329950317,1.31623,1520.6,1520.5,8.2457]
[1744329951621,1.31623,1520.6,1520.4,40.8]
[1744329951622,1.31625,1520.5,1520.4,40.8]
[1744329951818,2.92005,1520.5,1520.4,40.8]
[1744329952123,1.31633,1520.4,1520.3,0.00657327]
[1744329952315,7.57303,1520.4,1520.3,3.27e-06]
[1744329952516,12.57303,1520.4,1520.3,3.27e-06]
[1744329952911,18.42503,1520.4,1520.3,3.27e-06]
[1744329953518,1.31703,1519.6,1519.5,1.6933]
[1744329953727,4.52483,1519.6,1519.5,8.26370327]
[1744329954025,4.52483,1519.6,1519.5,49.06370327]
[1744329954422,4.52483,1519.6,1519.5,40.8]
[1744329954623,3.2929,1519.5,1518.8,109.8363]
[1744329954826,1.31737,1519.2,1519.1,1.6933]
[1744329955624,3.2078,1519.4,1519.1,49.06370327]
[1744329955824,3.2078,1519.4,1519.1,42.4933]
[1744329956018,1.6119,1519.5,1519.1,40.8]
[1744329956019,4.52517,1519.2,1519.1,40.8]
[1744329956426,9.52517,1519.2,1519.1,40.8]
[1744329956618,11.15577,1519.2,1519.1,40.8]
[1744329956827,6.15577,1519.2,1519.1,40.8]
[1744329957417,6.15577,1519.2,1519.1,47.37040327]
[1744329957834,9.0598,1519.4,1519.1,47.37040327]
[1744329958028,10.37703,1519.4,1519.2,6.57040327]
[1744329958334,3.2078,1519.6,1519.4,1.31718]
[1744329958532,3.2078,1519.6,1519.4,1.31719]
[1744329958734,1.32686718,1519.7,1519.5,6.57040327]
[1744329959229,3.2078,1519.6,1519.3,1.3248]
[1744329959432,1.31711,1519.5,1519.3,7.89520327]
[1744329959627,1.31711,1519.5,1519.2,1.31737]
[1744329959828,1.31705,1519.6,1519.3,1.31724]
[1744329960036,1.32687718,1519.7,1519.4,1.31717]
[1744329960233,0.00987718,1519.7,1519.6,1.31703]
[1744329960425,0.00987718,1519.7,1519.4,1.31717]
[1744329960426,1.32685718,1519.7,1519.4,1.31717]
[1744329960622,0.00987718,1519.7,1519.5,40.8]
[1744329960827,0.00987718,1519.7,1519.6,1.31703]
[1744329961027,0.00987718,1519.7,1519.6,4.52483]
[1744329961235,0.00987718,1519.7,1519.6,10.86753]
[1744329961732,1.284,1519.9,1519.8,1.31685]
[1744329961939,1.284,1519.9,1519.8,9.54365]
[1744329962135,3.2078,1520.4,1519.8,13.2268]
[1744329962335,1.31625,1520.5,1520.2,1.31643]
[1744329962526,1.31622,1520.6,1520.3,1.31641]
[1744329962732,7.68366517,1520.7,1520.2,3.2078]
[1744329963034,0.00987718,1520.6,1520.5,1.31621]
[1744329963637,1.84729671,1520.7,1520.6,1.31616]
[1744329963827,1.84729671,1520.7,1520.6,4.52396]
[1744329964333,1.84729671,1520.7,1520.6,45.32396]
[1744329964639,1.84729671,1520.7,1520.6,44.0078]
[1744329965139,1.84729671,1520.7,1520.6,45.32396]
[1744329966135,0.00987718,1520.8,1520.6,45.32396]
[1744329966341,0.00987718,1520.8,1520.6,44.0078]
[1744329966543,0.00987718,1520.8,1520.6,45.32389]
[1744329966734,0.00987718,1520.8,1520.7,1.31607]
[1744329967041,0.00987718,1520.8,1520.6,45.32388]
[1744329967934,0.00987718,1520.8,1520.7,1.31607]
[1744329968932,0.00987718,1520.8,1520.7,6.38307]
[1744329969134,0.00987718,1520.8,1520.7,11.38307]
[1744329969435,0.1931,1520.9,1520.8,1.31599]
[1744329969634,4.52321,1521.5,1521.2,1.31557]
[1744329969941,4.52321,1521.5,1521.3,1.6797]
[1744329970539,1.31541,1521.5,1521.3,1.6797]
[1744329970739,6.39222718,1521.6,1521.3,2.99525]
[1744329970941,0.00987718,1521.6,1521.3,1.6797]
[1744329971136,1.31555,1521.3,1521.2,0.00987718]
[1744329971341,4.52335,1521.3,1521.2,0.00987718]
[1744329972940,1.31552,1521.4,1521.2,0.00987718]
[1744329973241,11.38981,1521.5,1521.3,1.31552]
[1744329973442,4.68071,1521.5,1521.4,1.6353]
[1744329973842,1.31555,1521.3,1521.2,0.00987718]
[1744329974055,3.2078,1521.3,1521.2,0.00987718]
[1744329974246,1.47291,1521.5,1521.2,0.00987718]
[1744329974442,0.1575,1521.5,1521.2,0.00987718]
[1744329974643,0.1575,1521.5,1521.4,1.31547]
[1744329975647,0.1575,1521.5,1521.4,2.95077]
[1744329975941,0.04537718,1521.6,1521.5,1.31538]
[1744329976147,0.04537718,1521.6,1521.5,8.01668]
[1744329976551,0.04537718,1521.6,1521.5,53.81668]
[1744329976750,0.04537718,1521.6,1521.5,57.02448]
[1744329977048,0.00987718,1521.6,1521.5,57.02448]
[1744329977352,0.00987718,1521.6,1521.5,52.02448]
[1744329979157,0.00987718,1521.6,1521.5,57.02448]
[1744329984759,0.00987718,1521.6,1521.5,52.02448]
[1744329984964,0.00987718,1521.6,1521.5,57.02448]
[1744329985659,0.00987718,1521.6,1521.5,52.02448]
[1744329986359,0.00987718,1521.6,1521.5,47.5013]
[1744329986859,1.70667718,1521.6,1521.5,47.5013]
[1744329987649,3.02196718,1521.6,1521.5,47.5013]
[1744329987860,3.02196718,1521.6,1521.5,42.4353]
[1744329988061,8.02196718,1521.6,1521.5,40.8]
[1744329990367,1.70667718,1521.6,1521.5,42.11538]
[1744329990561,0.00987718,1521.6,1521.5,45.32318]
[1744329990861,0.00987718,1521.6,1521.5,50.32318]
[1744329991255,0.00987718,1521.6,1521.5,51.99558]
[1744329992865,0.00987718,1521.6,1521.5,47.65318]
[1744329993258,0.00987718,1521.6,1521.5,46.99558]
[1744329993461,0.00987718,1521.6,1521.5,47.65318]
[1744329993965,0.00987718,1521.6,1521.5,52.65318]
[1744329994156,0.0355,1521.8,1521.7,1.31521]
[1744329994357,1.7277,1522.4,1522.3,1.31469]
[1744329994557,6.37786098,1522.5,1522.3,1.31469]
[1744329994558,5.06331098,1522.5,1522.3,1.31469]
[1744329994862,5.06331098,1522.5,1522.4,1.7139]
[1744329994863,8.10553098,1522.5,1522.4,1.7139]
[1744329995259,3.04222,1522.5,1522.4,42.5139]
[1744329997468,3.04222,1522.5,1522.4,40.8]
[1744329998269,8.04222,1522.5,1522.4,40.8]
[1744329998563,3.37497718,1522.6,1522.4,40.8]
[1744329998768,4.68947718,1522.6,1522.4,42.1146]
[1744329998970,5.20427718,1522.6,1522.5,1.31452]
[1744329999168,5.20427718,1522.6,1522.5,3.15932]
[1744329999368,5.20427718,1522.6,1522.4,40.8]
[1744329999369,1.31452,1522.5,1522.4,40.8]
[1744329999569,3.14382,1522.5,1522.4,40.8]
[1744330000066,3.14382,1522.5,1522.4,42.6448]
[1744330000462,8.14382,1522.5,1522.4,40.8]
[1744330001168,3.14382,1522.5,1522.4,40.8]
[1744330002062,3.14382,1522.5,1522.4,42.67]
[1744330002671,1.8293,1522.5,1522.4,43.9846]
[1744330002869,3.14382,1522.5,1522.4,42.67]
[1744330003870,3.14382,1522.5,1522.4,40.8]
[1744330004869,8.14382,1522.5,1522.4,40.8]
[1744330009972,12.6813,1522.5,1522.0,6.8972]
[1744330010178,3.2078,1522.1,1521.9,5.026]
[1744330010473,1.31504,1521.9,1521.8,1.8582]
[1744330010668,1.31504,1521.9,1521.7,2.86794]
[1744330010669,1.764,1522.0,1521.6,109.77207]
[1744330010868,1.31521,1521.7,1521.6,5.026]
[1744330011069,1.31521,1521.7,1521.6,45.826]
[1744330013072,1.31521,1521.7,1521.6,40.8]
[1744330014875,9.52301,1521.7,1521.6,40.8]
[1744330015969,3.08903718,1521.8,1521.6,40.8]
[1744330016176,3.08903718,1521.8,1521.6,43.93587]
[1744330016369,3.08903718,1521.8,1521.7,1.7887]
[1744330016569,1.32503718,1521.8,1521.7,1.7887]
[1744330017175,1.32503718,1521.8,1521.7,3.10391]
[1744330017176,0.00987718,1521.8,1521.7,3.10391]
[1744330017578,0.00987718,1521.8,1521.7,8.13091]
[1744330017777,1.32499718,1521.8,1521.7,48.93091]
[1744330018080,1.32499718,1521.8,1521.7,40.8]
[1744330018472,8.04259718,1521.8,1521.7,40.8]
[1744330019172,1.31529,1521.6,1521.5,0.00987718]
[1744330019381,4.52309,1521.6,1521.5,7.18e-06]
[1744330019581,15.37509,1521.6,1521.5,7.18e-06]
[1744330019771,18.58869,1521.6,1521.5,7.18e-06]
[1744330020075,3.28873,1521.4,1521.0,1.7887]
[1744330020378,3.2078,1521.4,1521.0,3.10447]
[1744330020581,1.31573,1521.1,1521.0,1.7887]
[1744330021073,1.3159,1520.9,1520.8,40.8]
[1744330021278,1.31625,1520.5,1520.4,16.98175456]
[1744330021478,3.2078,1520.7,1520.4,18.29806456]
[1744330021779,1.32603718,1520.6,1520.5,40.8]
[1744330021979,3.07213718,1520.6,1520.5,40.8]
[1744330023172,1.31625,1520.5,1520.4,13.86427456]
[1744330023367,1.31642,1520.3,1520.2,15.44297519]
[1744330023572,4.52422,1520.3,1520.2,15.44297519]
[1744330023778,9.52422,1520.3,1520.2,56.24297519]
[1744330023972,9.52422,1520.3,1520.2,15.44297519]
[1744330024174,9.52422,1520.3,1520.2,13.91069519]
[1744330024374,15.37622,1520.3,1520.2,12.56091519]
[1744330025780,12.15292,1520.3,1520.2,12.56091519]
[1744330026676,9.0598,1520.3,1520.2,12.56091519]
[1744330026881,9.0598,1520.3,1520.2,15.70592519]
[1744330027675,0.1575,1520.4,1520.3,1.31642]
[1744330027876,0.1575,1520.4,1520.2,19.42041519]
[1744330028183,4.52422,1520.3,1520.2,14.38941519]
[1744330028377,11.42180012,1520.3,1520.2,42.6285]
[1744330029183,10.10538012,1520.3,1520.2,42.6285]
[1744330029771,11.42180012,1520.3,1520.2,42.6285]
[1744330030379,10.10538012,1520.3,1520.2,42.6285]
[1744330031084,5.12088012,1520.3,1520.2,43.94501]
[1744330031476,5.12088012,1520.3,1520.2,48.94501]
[1744330032184,5.12088012,1520.3,1520.2,52.15281]
[1744330033084,5.12088012,1520.3,1520.2,42.6285]
[1744330033379,5.12088012,1520.3,1520.2,43.94501]
[1744330033780,1.47389,1520.4,1520.2,43.94501]
[1744330034093,1.31642,1520.3,1520.2,42.6285]
[1744330034282,1.31651,1520.2,1520.1,0.00987717]
[1744330034481,4.52431,1520.2,1520.1,0.00987717]
[1744330034682,6.25781,1520.2,1520.1,0.00987717]
[1744330034989,11.25781,1520.2,1520.1,0.00987717]
[1744330035286,11.25781,1520.2,1520.1,7.17e-06]
[1744330035481,20.24461,1520.2,1520.1,7.17e-06]
[1744330035989,15.24461,1520.2,1520.1,7.17e-06]
[1744330036486,12.10981,1520.2,1520.1,7.17e-06]
[1744330036687,1.31668,1520.0,1519.9,1.7655]
[1744330036887,4.52448,1520.0,1519.9,1.7655]
[1744330037589,6.49954,1520.0,1519.6,40.8]
[1744330037789,1.31685,1519.8,1519.7,1.8514]
[1744330037978,4.52465,1519.8,1519.7,1.8514]
[1744330038384,1.31694,1519.7,1519.6,40.8]
[1744330038586,3.15914,1519.7,1519.6,40.8]
[1744330038787,15.9866,1519.7,1519.1,1.5091]
[1744330038992,4.52509,1519.3,1519.2,1.8514]
[1744330039891,4.52509,1519.3,1519.2,42.6514]
[1744330040790,4.52509,1519.3,1519.2,40.8]
[1744330041287,1.31726,1519.4,1519.2,40.8]
[1744330041487,1.31726,1519.4,1519.3,1.84]
[1744330041693,1.31716,1519.5,1519.3,6.84]
[1744330041893,1.31716,1519.5,1519.3,4.875]
[1744330042086,1.31716,1519.5,1519.4,1.84]
[1744330043897,1.31708,1519.6,1519.4,3.1572]
[1744330044087,1.31699,1519.7,1519.5,1.31708]
[1744330044395,1.31711,1519.5,1519.4,5.024]
[1744330044594,1.31711,1519.5,1519.3,4.35222]
[1744330044595,1.3172,1519.4,1519.3,3.035]
[1744330045196,1.31729,1519.3,1519.2,40.8]
[1744330046892,3.2078,1519.5,1519.2,40.8]
[1744330047092,1.31729,1519.3,1519.2,40.8]
[1744330047596,4.52509,1519.3,1519.2,40.8]
[1744330048298,3.2078,1519.3,1519.2,42.11737]
[1744330048493,0.1576,1519.6,1519.2,50.825]
[1744330048698,1.47467,1519.6,1519.4,1.31717]
[1744330048885,0.1576,1519.6,1519.5,1.31711]
[1744330049099,0.1576,1519.6,1519.5,6.31711]
[1744330049293,1.47463,1519.6,1519.5,5.025]
[1744330049889,0.1576,1519.6,1519.5,5.025]
[1744330050097,0.00987718,1519.8,1519.7,1.31694]
[1744330050403,1.32680718,1519.8,1519.5,8.2328]
[1744330050597,1.32673718,1519.8,1519.6,1.31703]
[1744330050994,0.00987718,1519.8,1519.5,8.2328]
[1744330051298,3.2078,1519.7,1519.6,1.31698]
[1744330051502,4.52481,1519.7,1519.4,1.5737]
[1744330051801,1.317,1519.7,1519.4,2.89084]
[1744330052102,0.00987718,1519.8,1519.4,1.5737]
[1744330052300,1.31711,1519.5,1519.4,1.5737]
[1744330052504,1.31711,1519.5,1519.3,5.025]
[1744330052505,1.3172,1519.4,1519.3,5.025]
[1744330053310,1.31719,1519.5,1519.3,5.025]
[1744330053501,1.31711,1519.5,1519.3,5.025]
[1744330053702,1.31711,1519.5,1519.3,6.34228]
[1744330053903,1.31711,1519.5,1519.3,5.025]
[1744330054210,1.3172,1519.4,1519.3,5.025]
[1744330055201,1.8401,1519.6,1519.3,5.025]
[1744330055202,1.31719,1519.5,1519.3,5.025]
[1744330055406,0.00987718,1519.8,1519.3,8.2328]
[1744330055711,0.00987718,1519.8,1519.5,3.2078]
[1744330056008,0.00987718,1519.8,1519.7,4.52474]
[1744330056409,1.31657,1520.2,1520.0,1.31664]
[1744330056616,1.31651,1520.2,1520.0,1.31664]
[1744330056819,3.2078,1520.3,1519.9,5.025]
[1744330057020,1.31665,1520.1,1519.9,6.34175]
[1744330057222,1.31668,1520.0,1519.9,5.025]
[1744330057615,1.31668,1520.0,1519.9,45.825]
[1744330058125,3.21767718,1520.1,1519.9,47.14176]
[1744330058323,3.21767718,1520.1,1519.9,47.3402]
[1744330058518,3.21767718,1520.1,1519.9,48.65689]
[1744330059021,1.31668,1520.0,1519.9,47.3402]
[1744330059219,1.32653718,1520.1,1519.9,48.65697]
[1744330059415,1.31668,1520.0,1519.9,47.3402]
[1744330059620,0.00987718,1520.1,1519.9,47.3402]
[1744330059930,1.31668,1520.0,1519.9,40.8]
[1744330060926,3.19298,1520.0,1519.9,40.8]
[1744330061428,8.19298,1520.0,1519.9,40.8]
[1744330064426,1.31677,1519.9,1519.8,0.00987718]
[1744330064633,6.44967,1519.9,1519.8,0.00987718]
[1744330064933,11.44967,1519.9,1519.8,7.18e-06]
[1744330065525,11.44967,1519.9,1519.8,40.80000718]
[1744330066329,1.31703,1519.6,1519.5,1.799]
[1744330066524,4.52483,1519.6,1519.5,1.799]
[1744330067222,4.52483,1519.6,1519.2,1.5528]
[1744330067223,1.31729,1519.3,1519.2,1.5528]
[1744330067428,1.8229,1519.5,1519.2,43.67017]
[1744330067635,1.8229,1519.5,1519.2,42.3528]
[1744330067840,3.2078,1519.6,1519.2,42.3528]
[1744330068034,1.31709,1519.6,1519.4,1.3172]
[1744330068537,1.31709,1519.6,1519.5,1.9122]
[1744330068733,4.52489,1519.6,1519.5,1.9122]
[1744330068935,13.1249331,1519.6,1519.5,1.9122]
[1744330073138,1.31729,1519.3,1519.2,42.3528]
[1744330073637,1.31729,1519.3,1519.2,47.3528]
[1744330073833,1.31729,1519.3,1519.2,42.3528]
[1744330074230,1.31772,1518.8,1518.7,3.2078]
[1744330074432,1.31778,1518.8,1518.6,1.9747]
[1744330074731,0.00987718,1518.9,1518.6,1.9747]
[1744330074936,0.00987718,1518.9,1518.8,1.31772]
[1744330075237,0.00987718,1518.9,1518.8,47.20572]
[1744330075429,0.00987718,1518.9,1518.8,52.20572]
[1744330076232,0.98783182,1519.6,1518.9,3.29394]
[1744330076432,0.98783182,1519.6,1519.5,1.31711]
[1744330077237,0.98783182,1519.6,1519.5,9.85361]
[1744330077441,0.98783182,1519.6,1519.5,13.06141]
[1744330077735,7.62208846,1519.7,1519.6,1.31703]
[1744330078328,0.00987718,1519.7,1519.6,42.11703]
[1744330078528,1.32681718,1519.7,1519.6,40.8]
[1744330079936,6.32681718,1519.7,1519.6,40.8]
[1744330080125,3.72271718,1519.7,1519.6,40.8]
[1744330080328,1.32681718,1519.7,1519.6,40.8]
[1744330080540,3.72271718,1519.7,1519.6,40.8]
[1744330081239,0.00987718,1519.7,1519.6,42.11703]
[1744330081432,0.00987718,1519.7,1519.6,47.11703]
[1744330081736,0.00987718,1519.7,1519.6,49.02993]
[1744330081939,29.92602773,1519.9,1519.8,1.31685]
[1744330082237,29.92602773,1519.9,1519.8,9.61265]
[1744330082448,5.45993673,1519.9,1519.8,15.27105]
[1744330082738,12.02292981,1519.9,1519.8,54.48898701]
[1744330084232,0.00987718,1520.0,1519.9,1.31677]
[1744330084428,0.00987718,1520.0,1519.9,6.31677]
[1744330085939,0.00987718,1520.0,1519.9,1.4575]
[1744330086242,0.00987718,1520.0,1519.9,2.77427]
[1744330086433,1.59194643,1520.0,1519.9,1.4575]
[1744330086740,1.59194643,1520.0,1519.9,2.77427]
[1744330086926,1.59194643,1520.0,1519.9,7.77427]
[1744330086927,0.00987718,1520.0,1519.9,7.77427]
[1744330088241,1.32655718,1520.0,1519.9,1.4575]
[1744330088441,1.59194643,1520.0,1519.8,45.888]
[1744330088637,3.99694643,1520.0,1519.8,48.66371]
[1744330088841,5.31362643,1520.0,1519.9,1.4589]
[1744330089134,5.31362643,1520.0,1519.8,45.888]
[1744330089342,5.31362643,1520.0,1519.8,47.3469]
[1744330089549,1.31677,1519.9,1519.8,47.3469]
[1744330089840,6.86077,1519.9,1519.8,45.888]
[1744330090038,8.44283925,1519.9,1519.8,40.8]
[1744330090244,13.44283925,1519.9,1519.8,40.8]
[1744330090541,15.43983925,1519.9,1519.8,40.8]
[1744330092043,15.83297,1519.9,1519.4,6.55177718]
[1744330092344,4.52491,1519.5,1519.4,5.09287718]
[1744330092943,4.52491,1519.5,1519.4,45.89287718]
[1744330093243,4.52491,1519.5,1519.4,40.80987718]
[1744330093546,6.49361,1519.5,1519.4,40.80987718]
[1744330095040,5.1765,1519.5,1519.4,40.80987718]
[1744330095343,6.49361,1519.5,1519.4,40.80987718]
[1744330095540,5.5041,1519.5,1519.4,40.80987718]
[1744330095843,3.2078,1519.7,1519.5,1.31706]
[1744330096050,3.6132,1519.8,1519.6,5.084]
[1744330096242,5.13165187,1520.0,1519.9,1.31677]
[1744330096443,5.13165187,1520.0,1519.9,6.40077]
[1744330096640,7.42795187,1520.0,1519.9,6.40077]
[1744330097145,7.42795187,1520.0,1519.9,7.86067]
[1744330097645,5.13165187,1520.0,1519.9,12.86067]
[1744330097945,5.13165187,1520.0,1519.9,13.51907]
[1744330098448,10.25342657,1520.0,1519.9,54.31907]
[1744330098843,27.43528217,1520.6,1520.5,1.31625]
[1744330099147,27.43528217,1520.6,1520.5,9.60705]
[1744330099348,27.43528217,1520.6,1520.5,14.60705]
[1744330099538,27.43528217,1520.6,1520.5,55.40705]
[1744330099742,27.43528217,1520.6,1520.5,47.19925]
[1744330099944,27.43528217,1520.6,1520.5,45.883]
[1744330100146,27.43528217,1520.6,1520.5,55.40705]
[1744330100642,27.43528217,1520.6,1520.5,56.86695]
[1744330100853,25.91658217,1520.6,1520.5,62.85895]
[1744330101042,24.56195217,1520.6,1520.5,71.36153132]